fUSD/lending_fUSD_20240420
["ID","MTS","AMOUNT","RATE_DAILY","PERIOD"]
[323090061,1713643842395,-3052.712357,0.0001539,2]
[323090062,1713643842404,-609.131942,0.0001539,2]
[323090063,1713643842413,-182.446985,0.0001539,2]
[323090064,1713643842423,-789.173154,0.0001539,2]
[323090065,1713643842434,-789.173154,0.0001539,2]
[323090066,1713643842444,-182.446985,0.0001539,2]
[323090067,1713643842453,-151.0,0.0001539,2]
[323090068,1713643842463,-151.0,0.0001539,2]
[323090069,1713643842472,-476.033381,0.0001539,2]
[323090070,1713643842481,-151.0,0.0001539,2]
[323090071,1713643842492,-476.033381,0.0001539,2]
[323090072,1713643842502,-185.347272,0.0001539,2]
[323090073,1713643842512,-155.0,0.00015398,2]
[323090074,1713643842522,-3715.15192631,0.00015398,2]
[323090075,1713643842531,-1350.93200741,0.00015398,2]
[323090076,1713643842542,-151.0,0.000154,2]
[323090077,1713643842553,-151.0,0.000154,2]
[323090078,1713643842562,-151.0,0.000154,2]
[323090079,1713643842571,-151.0,0.000154,2]
[323090080,1713643842581,-151.0,0.000154,2]
[323090081,1713643842591,-151.0,0.000154,2]
[323090082,1713643842600,-151.0,0.000154,2]
[323090083,1713643842610,-151.0,0.000154,2]
[323090084,1713643842620,-151.0,0.000154,2]
[323090085,1713643842630,-151.0,0.000154,2]
[323090086,1713643842640,-151.0,0.000154,2]
[323090087,1713643842650,-318.233775,0.000154,2]
[323090088,1713643842659,-318.233775,0.000154,2]
[323090089,1713643842669,-152.851246,0.000154,2]
[323090090,1713643842678,-151.0,0.000154,2]
[323090091,1713643842688,-151.0,0.000154,2]
[323090092,1713643842698,-151.0,0.000154,2]
[323090093,1713643842707,-151.0,0.000154,2]
[323090094,1713643842716,-151.0,0.000154,2]
[323090095,1713643842726,-151.0,0.000154,2]
[323090096,1713643842734,-272.18507,0.000154,2]
[323090097,1713643842743,-151.0,0.000154,2]
[323090098,1713643842753,-151.0,0.000154,2]
[323090099,1713643842762,-151.0,0.000154,2]
[323090100,1713643842771,-272.18507,0.000154,2]
[323090101,1713643842781,-337.313592,0.000154,2]
[323090102,1713643842790,-337.313592,0.000154,2]
[323090103,1713643842799,-151.0,0.000154,2]
[323090104,1713643842808,-156.805712,0.000154,2]
[323090105,1713643842818,-156.805712,0.000154,2]
[323090106,1713643842827,-776.350726,0.000154,2]
[323090107,1713643842837,-311.963041,0.000154,2]
[323090109,1713643842846,-429.991967,0.000154,2]
[323090111,1713643842855,-776.350726,0.000154,2]
[323090113,1713643842877,-311.963041,0.000154,2]
[323090114,1713643842887,-151.0,0.000154,2]
[323090115,1713643842897,-151.0,0.000154,2]
[323090116,1713643842907,-151.0,0.000154,2]
[323090117,1713643842917,-151.0,0.000154,2]
[323090118,1713643842926,-363.758574,0.000154,2]
[323090119,1713643842937,-738.919755,0.000154,2]
[323090120,1713643842947,-738.919755,0.000154,2]
[323090121,1713643842957,-323.715172,0.000154,2]
[323090122,1713643842967,-151.0,0.000154,2]
[323090123,1713643842977,-323.715172,0.000154,2]
[323090124,1713643842987,-151.0,0.000154,2]
[323090125,1713643842997,-151.0,0.000154,2]
[323090128,1713643843006,-151.0,0.000154,2]
[323090129,1713643843016,-221.308768,0.000154,2]
[323090130,1713643843026,-221.308768,0.000154,2]
[323090131,1713643843037,-216.25977285,0.000154,2]
[323090132,1713643843047,-197.18806504,0.000154,2]
[323090133,1713643843056,-816.07883004,0.000154,2]
[323090134,1713643843067,-172.97858173,0.000154,2]
[323090135,1713643843076,-11418.24979242,0.000154,2]
[323090136,1713643843086,-3000.0,0.0001541,2]
[323090137,1713643843097,-150.0,0.00015471,2]
[323090138,1713643843107,-500.0,0.00015471,2]
[323090140,1713643843117,-500.0,0.00015471,2]
[323090141,1713643843127,-4156.38,0.00015471,2]
[323090142,1713643843136,-2202.1,0.00015471,2]
[323090144,1713643843146,-500.0,0.00015471,2]
[323090145,1713643843155,-526.71808343,0.00015471,2]
[323090148,1713643843166,-500.0,0.00015471,2]
[323090150,1713643843175,-5842.87653255,0.00015499,2]
[323090152,1713643843187,-1196.1477765,0.00015499,5]
[323090154,1713643843198,-163.3203843,0.00015499,2]
[323090156,1713643843207,-1621.31847591,0.00015499,2]
[323090158,1713643843217,-10737.9130253,0.000155,2]
[323090159,1713643843488,-376.17167403,0.000155,2]
[323090160,1713643843499,-312155.25765728,0.000155,2]
[323090161,1713643843511,-3176.93985369,0.000155,2]
[323090162,1713643843537,-500.0,0.00015197,2]
[323090163,1713643843568,-6215.718004,0.000155,2]
[323090164,1713643843617,-1910.5,0.000155,2]
[323090165,1713643843672,-281.68,0.000155,2]
[323090166,1713643843722,-304.0,0.000155,2]
[323090167,1713643843752,-9840.98129079,0.000155,2]
[323090168,1713643843763,-1601.74078846,0.000155,2]
[323090169,1713643843774,-3577.80730142,0.000155,2]
[323090170,1713643843785,-675469.54978052,0.000155,2]
[323090171,1713643843811,-87236.48773244,0.000155,2]
[323090172,1713643843822,-549.75230647,0.000155,2]
[323090173,1713643843900,-5937.01110113,0.000155,2]
[323090174,1713643843920,-1258.90190232,0.000155,2]
[323090175,1713643843940,-6017.90005343,0.000155,2]
[323090176,1713643843951,-1010.0,0.000155,2]
[323090177,1713643844094,-151.0,0.00015198,2]
[323090178,1713643844104,-151.0,0.00015382,2]
[323090179,1713643844113,-151.0,0.0001539,2]
[323090180,1713643844122,-195.98446116,0.00015499,2]
[323090181,1713643844131,-131820.88108506,0.000155,2]
[323090182,1713643844141,-151.0,0.000155,2]
[323090183,1713643844150,-151.0,0.000155,2]
[323090184,1713643844159,-151.0,0.000155,2]
[323090185,1713643844224,-151.0,0.000155,2]
[323090186,1713643844237,-151.0,0.000155,2]
[323090187,1713643844246,-151.0,0.000155,2]
[323090188,1713643844255,-151.0,0.000155,2]
[323090189,1713643844263,-151.0,0.000155,2]
[323090190,1713643844275,-151.0,0.000155,2]
[323090191,1713643844284,-270.637955,0.000155,2]
[323090192,1713643844293,-318.233775,0.000155,2]
[323090193,1713643844303,-318.233775,0.000155,2]
[323090194,1713643844312,-151.0,0.000155,2]
[323090195,1713643844321,-151.0,0.000155,2]
[323090196,1713643844330,-151.0,0.000155,2]
[323090197,1713643844339,-151.0,0.000155,2]
[323090198,1713643844348,-151.0,0.000155,2]
[323090199,1713643844357,-151.0,0.000155,2]
[323090200,1713643844366,-272.18507,0.000155,2]
[323090201,1713643844375,-151.0,0.000155,2]
[323090202,1713643844384,-151.0,0.000155,2]
[323090203,1713643844393,-185.679679,0.000155,2]
[323090204,1713643844402,-272.18507,0.000155,2]
[323090205,1713643844411,-337.313592,0.000155,2]
[323090206,1713643844420,-337.313592,0.000155,2]
[323090207,1713643844430,-151.0,0.000155,2]
[323090208,1713643844441,-156.805712,0.000155,2]
[323090209,1713643844451,-156.805712,0.000155,2]
[323090210,1713643844460,-776.350726,0.000155,2]
[323090211,1713643844469,-429.991967,0.000155,2]
[323090212,1713643844478,-311.963041,0.000155,2]
[323090213,1713643844488,-776.350726,0.000155,2]
[323090214,1713643844497,-311.963041,0.000155,2]
[323090215,1713643844506,-151.0,0.000155,2]
[323090216,1713643844516,-151.0,0.000155,2]
[323090217,1713643844524,-258.741363,0.000155,2]
[323090218,1713643844533,-738.919755,0.000155,2]
[323090219,1713643844543,-738.919755,0.000155,2]
[323090220,1713643844551,-323.715172,0.000155,2]
[323090221,1713643844560,-151.0,0.000155,2]
[323090222,1713643844569,-323.715172,0.000155,2]
[323090223,1713643844578,-151.0,0.000155,2]
[323090224,1713643844587,-151.0,0.000155,2]
[323090225,1713643844596,-292.339077,0.000155,2]
[323090226,1713643844605,-221.308768,0.000155,2]
[323090227,1713643844615,-221.308768,0.000155,2]
[323090228,1713643844623,-216.595099,0.000155,2]
[323090229,1713643844632,-151.0,0.000155,2]
[323090230,1713643844642,-216.595099,0.000155,2]
[323090231,1713643844651,-169.135837,0.000155,2]
[323090232,1713643844660,-195.744441,0.000155,2]
[323090233,1713643844669,-671.392718,0.000155,2]
[323090234,1713643844679,-671.392718,0.000155,2]
[323090235,1713643844690,-459.044908,0.000155,2]
[323090236,1713643844699,-260.517044,0.000155,2]
[323090237,1713643844708,-459.044908,0.000155,2]
[323090238,1713643844717,-688.066142,0.000155,2]
[323090239,1713643844726,-260.517044,0.000155,2]
[323090240,1713643844735,-688.066142,0.000155,2]
[323090241,1713643844745,-151.0,0.000155,2]
[323090242,1713643844753,-151.0,0.000155,2]
[323090243,1713643844763,-827.803785,0.000155,2]
[323090244,1713643844771,-827.803785,0.000155,2]
[323090245,1713643844781,-151.0,0.000155,2]
[323090246,1713643844791,-151.0,0.000155,2]
[323090247,1713643844799,-151.0,0.000155,2]
[323090248,1713643844808,-157.80335,0.000155,2]
[323090249,1713643844817,-843.56018,0.000155,2]
[323090250,1713643844826,-151.0,0.000155,2]
[323090251,1713643844835,-843.56018,0.000155,2]
[323090252,1713643844845,-860.688735,0.000155,2]
[323090253,1713643844854,-170.733186,0.000155,2]
[323090254,1713643844863,-860.688735,0.000155,2]
[323090255,1713643844872,-170.733186,0.000155,2]
[323090256,1713643844881,-159.747183,0.000155,2]
[323090257,1713643844890,-159.747183,0.000155,2]
[323090258,1713643844899,-151.0,0.000155,2]
[323090259,1713643844908,-563.17611,0.000155,2]
[323090260,1713643844917,-151.0,0.000155,2]
[323090261,1713643844926,-151.0,0.000155,2]
[323090262,1713643844936,-563.17611,0.000155,2]
[323090263,1713643844945,-151.0,0.000155,2]
[323090264,1713643844954,-151.0,0.000155,2]
[323090265,1713643844963,-200.155546,0.000155,2]
[323090266,1713643844972,-200.155546,0.000155,2]
[323090267,1713643844981,-151.0,0.000155,2]
[323090268,1713643844990,-151.0,0.000155,2]
[323090269,1713643844999,-151.326975,0.000155,2]
[323090270,1713643845009,-1784.228195,0.000155,2]
[323090271,1713643845018,-151.326975,0.000155,2]
[323090272,1713643845027,-1784.228195,0.000155,2]
[323090273,1713643845036,-344.090692,0.000155,2]
[323090274,1713643845045,-151.0,0.000155,2]
[323090275,1713643845054,-151.0,0.000155,2]
[323090276,1713643845064,-344.090692,0.000155,2]
[323090277,1713643845072,-187.202904,0.000155,2]
[323090278,1713643845081,-187.202904,0.000155,2]
[323090279,1713643845090,-151.0,0.000155,2]
[323090280,1713643845099,-339.231245,0.000155,2]
[323090281,1713643845108,-151.0,0.000155,2]
[323090282,1713643845117,-339.231245,0.000155,2]
[323090283,1713643845126,-151.0,0.000155,2]
[323090284,1713643845135,-151.0,0.000155,2]
[323090285,1713643845144,-151.0,0.000155,2]
[323090286,1713643845153,-779.22,0.000155,2]
[323090287,1713643845162,-608.00439,0.000155,2]
[323090288,1713643845171,-189.557232,0.000155,2]
[323090289,1713643845182,-152.339646,0.000155,2]
[323090290,1713643845196,-608.00439,0.000155,2]
[323090291,1713643845205,-189.557232,0.000155,2]
[323090292,1713643845214,-152.339646,0.000155,2]
[323090293,1713643845223,-151.0,0.000155,2]
[323090294,1713643845237,-151.0,0.000155,2]
[323090295,1713643845248,-735.158662,0.000155,2]
[323090296,1713643845257,-735.158662,0.000155,2]
[323090297,1713643845266,-812.026672,0.000155,2]
[323090298,1713643845277,-216.428569,0.000155,2]
[323090299,1713643845286,-812.026672,0.000155,2]
[323090300,1713643845295,-216.428569,0.000155,2]
[323090301,1713643845304,-151.0,0.000155,2]
[323090302,1713643845314,-3052.712357,0.000155,2]
[323090303,1713643845326,-609.131942,0.000155,2]
[323090304,1713643845335,-3052.712357,0.000155,2]
[323090305,1713643845344,-609.131942,0.000155,2]
[323090306,1713643845354,-182.446985,0.000155,2]
[323090307,1713643845363,-789.173154,0.000155,2]
[323090308,1713643845373,-789.173154,0.000155,2]
[323090309,1713643845382,-182.446985,0.000155,2]
[323090310,1713643845391,-151.0,0.000155,2]
[323090311,1713643845400,-151.0,0.000155,2]
[323090312,1713643845409,-476.033381,0.000155,2]
[323090313,1713643845418,-151.0,0.000155,2]
[323090314,1713643845426,-476.033381,0.000155,2]
[323090315,1713643845439,-163.14,0.00015512,2]
[323090316,1713643845448,-3000.0,0.0001557,2]
[323090317,1713643845457,-4171.71,0.00015616,2]
[323090318,1713643845467,-1049.06,0.00015616,2]
[323090319,1713643845476,-3500.0,0.00015616,2]
[323090320,1713643845486,-4551.46,0.00015616,2]
[323090321,1713643845495,-500.0,0.00015616,2]
[323090322,1713643845504,-702.33,0.00015616,2]
[323090323,1713643845513,-1382.21,0.00015616,2]
[323090324,1713643845522,-4580.1,0.00015616,2]
[323090325,1713643845531,-500.0,0.00015616,2]
[323090326,1713643845540,-11216.95,0.00015616,2]
[323090327,1713643845550,-3262.5173003,0.00015632,2]
[323090328,1713643845559,-3234.615,0.00015638,2]
[323090329,1713643845567,-439.139,0.00015638,2]
[323090330,1713643845577,-1474.0,0.00015638,2]
[323090331,1713643845586,-2444.0,0.00015638,2]
[323090332,1713643845594,-297.7,0.00015638,2]
[323090333,1713643845603,-1640.0,0.00015638,2]
[323090334,1713643845612,-242.856,0.00015638,2]
[323090335,1713643845621,-203.973,0.00015638,2]
[323090336,1713643845630,-227.0,0.00015638,2]
[323090337,1713643845639,-449.655,0.00015638,2]
[323090338,1713643845648,-1140.0,0.00015638,2]
[323090339,1713643845657,-151.0,0.00015638,2]
[323090340,1713643845667,-151.0,0.00015638,2]
[323090341,1713643845676,-187.202904,0.00015638,2]
[323090342,1713643845693,-187.202904,0.00015638,2]
[323090343,1713643845702,-151.0,0.00015638,2]
[323090344,1713643845711,-339.231245,0.00015638,2]
[323090345,1713643845720,-182.471312,0.00015638,2]
[323090346,1713643845729,-339.231245,0.00015638,2]
[323090347,1713643845738,-151.0,0.00015638,2]
[323090348,1713643845747,-151.0,0.00015638,2]
[323090349,1713643845756,-151.0,0.00015638,2]
[323090350,1713643845765,-608.00439,0.00015638,2]
[323090351,1713643845774,-189.557232,0.00015638,2]
[323090352,1713643845783,-152.339646,0.00015638,2]
[323090353,1713643845793,-608.00439,0.00015638,2]
[323090354,1713643845802,-189.557232,0.00015638,2]
[323090355,1713643845811,-152.339646,0.00015638,2]
[323090356,1713643845821,-151.0,0.00015638,2]
[323090357,1713643845831,-184.064469,0.00015638,2]
[323090358,1713643845840,-735.158662,0.00015638,2]
[323090359,1713643845849,-735.158662,0.00015638,2]
[323090360,1713643845859,-812.026672,0.00015638,2]
[323090361,1713643845868,-216.428569,0.00015638,2]
[323090362,1713643845877,-812.026672,0.00015638,2]
[323090363,1713643845886,-216.428569,0.00015638,2]
[323090364,1713643845895,-151.0,0.00015638,2]
[323090365,1713643845904,-3052.712357,0.00015638,2]
[323090366,1713643845913,-609.131942,0.00015638,2]
[323090367,1713643845922,-3052.712357,0.00015638,2]
[323090369,1713643845935,-609.131942,0.00015638,2]
[323090371,1713643845944,-182.446985,0.00015638,2]
[323090373,1713643845953,-789.173154,0.00015638,2]
[323090375,1713643845962,-789.173154,0.00015638,2]
[323090377,1713643845972,-182.446985,0.00015638,2]
[323090379,1713643845980,-151.0,0.00015638,2]
[323090381,1713643845989,-151.0,0.00015638,2]
[323090383,1713643845998,-476.033381,0.00015638,2]
[323090385,1713643846008,-476.033381,0.00015638,2]
[323090387,1713643846017,-5727.0,0.00015666,2]
[323090389,1713643846026,-5891.0,0.00015666,2]
[323090391,1713643846035,-2704.0,0.00015666,2]
[323090393,1713643846044,-37676.0,0.00015666,2]
[323090395,1713643846053,-1055.0,0.00015666,2]
[323090398,1713643846062,-11420.44000137,0.00015673,2]
[323090399,1713643846071,-10000.0,0.00015694,2]
[323090400,1713643846080,-151.0,0.00015695,2]
[323090401,1713643846089,-737.0,0.000157,2]
[323090402,1713643846100,-2848.0,0.000157,2]
[323090403,1713643846112,-1506.0,0.000157,2]
[323090404,1713643846122,-269.1795648,0.00015718,2]
[323090405,1713643846131,-3000.0,0.0001572,2]
[323090406,1713643846140,-1477.43489362,0.00015728,2]
[323090407,1713643846150,-150.0,0.00015745,2]
[323090408,1713643846158,-500.0,0.00015745,2]
[323090409,1713643846167,-500.0,0.00015745,2]
[323090410,1713643846176,-151.0,0.00015745,2]
[323090411,1713643846188,-151.0,0.00015745,2]
[323090412,1713643846197,-151.0,0.00015745,2]
[323090413,1713643846206,-244.844463,0.00015745,2]
[323090414,1713643846215,-151.0,0.00015745,2]
[323090415,1713643846224,-151.0,0.00015745,2]
[323090416,1713643846237,-1784.228195,0.00015745,2]
[323090417,1713643846246,-1784.228195,0.00015745,2]
[323090418,1713643846255,-344.090692,0.00015745,2]
[323090419,1713643846264,-344.090692,0.00015745,2]
[323090420,1713643846273,-4156.38,0.00015745,2]
[323090421,1713643846284,-2202.1,0.00015745,2]
[323090422,1713643846294,-500.0,0.00015745,2]
[323090423,1713643846303,-500.0,0.00015745,2]
[323090424,1713643846314,-151.0,0.00015747,2]
[323090425,1713643846323,-170.733186,0.00015747,2]
[323090426,1713643846333,-170.733186,0.00015747,2]
[323090427,1713643846342,-159.747183,0.00015747,2]
[323090428,1713643846351,-159.747183,0.00015747,2]
[323090429,1713643846360,-563.17611,0.00015747,2]
[323090430,1713643846370,-563.17611,0.00015747,2]
[323090431,1713643846379,-200.155546,0.00015747,2]
[323090432,1713643846389,-200.155546,0.00015747,2]
[323090433,1713643846398,-151.326975,0.00015747,2]
[323090434,1713643846406,-151.326975,0.00015747,2]
[323090435,1713643846416,-1000.0,0.00015771,2]
[323090436,1713643846425,-500.0,0.00015771,2]
[323090437,1713643846437,-151.0,0.00015771,2]
[323090438,1713643846446,-151.0,0.00015771,2]
[323090439,1713643846455,-843.56018,0.00015771,2]
[323090440,1713643846464,-843.56018,0.00015771,2]
[323090441,1713643846473,-860.688735,0.00015771,2]
[323090442,1713643846482,-860.688735,0.00015771,2]
[323090443,1713643846492,-151.0,0.00015771,2]
[323090444,1713643846501,-173.80588472,0.00015799,2]
[323090445,1713643846510,-167.87,0.00015831,2]
[323090446,1713643846519,-168.43,0.00015831,2]
[323090447,1713643846528,-168.11,0.00015831,2]
[323090448,1713643846537,-169.74,0.00015831,2]
[323090449,1713643846546,-216.595099,0.00015865,2]
[323090451,1713643846555,-151.0,0.00015865,2]
[323090453,1713643846564,-216.595099,0.00015865,2]
[323090455,1713643846573,-671.392718,0.00015865,2]
[323090457,1713643846582,-671.392718,0.00015865,2]
[323090458,1713643846591,-459.044908,0.00015865,2]
[323090459,1713643846600,-260.517044,0.00015865,2]
[323090460,1713643846609,-459.044908,0.00015865,2]
[323090461,1713643846619,-688.066142,0.00015865,2]
[323090462,1713643846628,-260.517044,0.00015865,2]
[323090463,1713643846637,-688.066142,0.00015865,2]
[323090464,1713643846646,-151.0,0.00015865,2]
[323090465,1713643846655,-151.0,0.00015865,2]
[323090466,1713643846665,-827.803785,0.00015865,2]
[323090467,1713643846674,-827.803785,0.00015865,2]
[323090468,1713643846683,-3000.0,0.0001588,2]
[323090469,1713643846692,-500.0,0.0001589,2]
[323090470,1713643846701,-702.33,0.0001589,2]
[323090471,1713643846710,-1382.21,0.0001589,2]
[323090472,1713643846719,-4580.1,0.0001589,2]
[323090473,1713643846728,-500.0,0.0001589,2]
[323090474,1713643846737,-11216.95,0.0001589,2]
[323090475,1713643846746,-390.506324,0.0001589,2]
[323090476,1713643846755,-1621.31847591,0.00015899,2]
[323090477,1713643846765,-200.0,0.00015939,2]
[323090478,1713643846774,-29115.69733125,0.00015998,2]
[323090479,1713643846783,-323.715172,0.00015998,2]
[323090480,1713643846792,-151.0,0.00015998,2]
[323090481,1713643846801,-323.715172,0.00015998,2]
[323090482,1713643846810,-151.0,0.00015998,2]
[323090483,1713643846820,-151.0,0.00015998,2]
[323090484,1713643846829,-221.308768,0.00015998,2]
[323090485,1713643846838,-221.308768,0.00015998,2]
[323090486,1713643846847,-151.0,0.00015998,2]
[323090487,1713643846857,-608.00439,0.00015998,2]
[323090488,1713643846866,-189.557232,0.00015998,2]
[323090489,1713643846875,-152.339646,0.00015998,2]
[323090490,1713643846884,-608.00439,0.00015998,2]
[323090491,1713643846894,-189.557232,0.00015998,2]
[323090492,1713643846903,-152.339646,0.00015998,2]
[323090493,1713643846912,-151.0,0.00015998,2]
[323090494,1713643846921,-735.158662,0.00015998,2]
[323090495,1713643846930,-735.158662,0.00015998,2]
[323090496,1713643846941,-812.026672,0.00015998,2]
[323090497,1713643846950,-216.428569,0.00015998,2]
[323090498,1713643846959,-812.026672,0.00015998,2]
[323090499,1713643846968,-216.428569,0.00015998,2]
[323090500,1713643846978,-151.0,0.00015998,2]
[323090501,1713643846987,-3052.712357,0.00015998,2]
[323090502,1713643846997,-609.131942,0.00015998,2]
[323090503,1713643847007,-3052.712357,0.00015998,2]
[323090504,1713643847017,-609.131942,0.00015998,2]
[323090505,1713643847026,-789.173154,0.00015998,2]
[323090506,1713643847036,-182.446985,0.00015998,2]
[323090507,1713643847046,-789.173154,0.00015998,2]
[323090508,1713643847055,-182.446985,0.00015998,2]
[323090509,1713643847065,-151.0,0.00015998,2]
[323090510,1713643847075,-151.0,0.00015998,2]
[323090511,1713643847084,-476.033381,0.00015998,2]
[323090512,1713643847094,-476.033381,0.00015998,2]
[323090513,1713643847103,-7490.0,0.00016,2]
[323090514,1713643847113,-1300.0,0.00016,2]
[323090515,1713643847123,-66595.0,0.00016,2]
[323090516,1713643847132,-206.603431,0.00016,2]
[323090517,1713643847142,-151.0,0.00016,2]
[323090518,1713643847151,-151.0,0.00016,2]
[323090519,1713643847161,-151.0,0.00016,2]
[323090520,1713643847170,-151.0,0.00016,2]
[323090521,1713643847179,-151.0,0.00016,2]
[323090522,1713643847191,-151.0,0.00016,2]
[323090523,1713643847200,-151.0,0.00016,2]
[323090524,1713643847209,-151.0,0.00016,2]
[323090525,1713643847219,-318.233775,0.00016,2]
[323090526,1713643847228,-318.233775,0.00016,2]
[323090527,1713643847241,-151.0,0.00016,2]
[323090528,1713643847251,-151.0,0.00016,2]
[323090529,1713643847260,-151.0,0.00016,2]
[323090530,1713643847271,-151.0,0.00016,2]
[323090531,1713643847281,-151.0,0.00016,2]
[323090532,1713643847290,-151.0,0.00016,2]
[323090533,1713643847299,-151.0,0.00016,2]
[323090534,1713643847310,-272.18507,0.00016,2]
[323090535,1713643847320,-151.0,0.00016,2]
[323090536,1713643847329,-272.18507,0.00016,2]
[323090537,1713643847339,-337.313592,0.00016,2]
[323090538,1713643847349,-337.313592,0.00016,2]
[323090539,1713643847359,-151.0,0.00016,2]
[323090540,1713643847368,-156.805712,0.00016,2]
[323090541,1713643847378,-156.805712,0.00016,2]
[323090542,1713643847387,-776.350726,0.00016,2]
[323090543,1713643847397,-429.991967,0.00016,2]
[323090544,1713643847406,-311.963041,0.00016,2]
[323090545,1713643847416,-776.350726,0.00016,2]
[323090546,1713643847425,-311.963041,0.00016,2]
[323090547,1713643847437,-151.0,0.00016,2]
[323090548,1713643847446,-151.0,0.00016,2]
[323090549,1713643847455,-738.919755,0.00016,2]
[323090550,1713643847465,-738.919755,0.00016,2]
[323090551,1713643847474,-216.595099,0.00016,2]
[323090552,1713643847483,-151.0,0.00016,2]
[323090553,1713643847493,-216.595099,0.00016,2]
[323090554,1713643847502,-671.392718,0.00016,2]
[323090555,1713643847512,-671.392718,0.00016,2]
[323090556,1713643847522,-459.044908,0.00016,2]
[323090557,1713643847531,-260.517044,0.00016,2]
[323090558,1713643847541,-459.044908,0.00016,2]
[323090559,1713643847550,-688.066142,0.00016,2]
[323090560,1713643847560,-260.517044,0.00016,2]
[323090561,1713643847571,-688.066142,0.00016,2]
[323090562,1713643847580,-151.0,0.00016,2]
[323090563,1713643847590,-151.0,0.00016,2]
[323090564,1713643847600,-827.803785,0.00016,2]
[323090565,1713643847610,-827.803785,0.00016,2]
[323090566,1713643847621,-281.298259,0.00016,2]
[323090567,1713643847630,-151.0,0.00016,2]
[323090568,1713643847640,-843.56018,0.00016,2]
[323090569,1713643847649,-151.0,0.00016,2]
[323090570,1713643847659,-843.56018,0.00016,2]
[323090571,1713643847668,-860.688735,0.00016,2]
[323090572,1713643847677,-170.733186,0.00016,2]
[323090573,1713643847689,-860.688735,0.00016,2]
[323090574,1713643847699,-170.733186,0.00016,2]
[323090575,1713643847708,-159.747183,0.00016,2]
[323090576,1713643847718,-159.747183,0.00016,2]
[323090577,1713643847727,-210.667682,0.00016,2]
[323090578,1713643847736,-563.17611,0.00016,2]
[323090579,1713643847746,-151.0,0.00016,2]
[323090580,1713643847756,-151.0,0.00016,2]
[323090581,1713643847766,-563.17611,0.00016,2]
[323090582,1713643847778,-210.668134,0.00016,2]
[323090583,1713643847787,-200.155546,0.00016,2]
[323090584,1713643847797,-200.155546,0.00016,2]
[323090585,1713643847807,-151.0,0.00016,2]
[323090586,1713643847816,-151.0,0.00016,2]
[323090587,1713643847827,-151.0,0.00016,2]
[323090588,1713643847836,-151.326975,0.00016,2]
[323090589,1713643847846,-1784.228195,0.00016,2]
[323090590,1713643847855,-151.326975,0.00016,2]
[323090591,1713643847864,-1784.228195,0.00016,2]
[323090592,1713643847874,-344.090692,0.00016,2]
[323090593,1713643847884,-151.0,0.00016,2]
[323090594,1713643847893,-151.0,0.00016,2]